[Event "European Online Club-ch-D 2021"]
[Site "Online"]
[Date "2021.03.27"]
[Round "4.19"]
[White "Maurizzi, Marc Andria"]
[Black "Toma, Radu-Cristian"]
[Result "0-1"]
[ECO "B31"]
[WhiteElo "2461"]
[BlackElo "2385"]
[Annotator "ChessBase"]
[PlyCount "122"]
[EventDate "2021.03.27"]
[EventType "team-tourn"]
[EventCountry "NET"]
[SourceTitle "playchess.com"]
[Source "ChessBase"]
[SourceQuality "1"]
[TimeControl "900+5"]

1. e4 {[%emt 0:00:00]} c5 {[%emt 0:00:09]} 2. Nf3 {[%emt 0:00:08]} Nc6 {[%emt 0:00:03]} 3. Nc3 {[%emt 0:00:04]} g6 {[%emt 0:00:16]} 4. Bb5 {[%emt 0:00:05]} Bg7 {[%emt 0:00:11]} 5. O-O {[%emt 0:00:03]} Qb6 {[%emt 0:01:06]} 6. Nd5 {[%emt 0:00:58]} Qd8 {[%emt 0:00:04]} 7. Nc3 {[%emt 0:00:02]} Qa5 {[%emt 0:00:33]} 8. Bc4 {[%emt 0:01:14]} d6 {[%emt 0:00:12]} 9. d3 {[%emt 0:00:15]} Nf6 {[%emt 0:00:09]} 10. h3 {[%emt 0:00:03]} O-O {[%emt 0:00:07]} 11. Bg5 {[%emt 0:00:23]} Rb8 {[%emt 0:00:33]} 12. a4 {[%emt 0:00:13]} Re8 {[%emt 0:00:19]} 13. Re1 {[%emt 0:00:08]} Nd7 {[%emt 0:01:04]} 14. Bd2 {[%emt 0:02:10]} Qd8 {[%emt 0:00:10]} 15. Ba2 {[%emt 0:00:27]} a6 {[%emt 0:00:19]} 16. Qc1 {[%emt 0:00:21]} e6 {[%emt 0:00:43]} 17. Bh6 {[%emt 0:00:09]} Bh8 {[%emt 0:00:14]} 18. Ne2 {[%emt 0:00:32]} b5 {[%emt 0:00:23]} 19. axb5 {[%emt 0:00:05]} axb5 {[%emt 0:00:02]} 20. Ng3 {[%emt 0:00:38]} c4 {[%emt 0:02:04]} 21. Bf4 {[%emt 0:01:35]} Nc5 {[%emt 0:00:58]} 22. Rd1 {[%emt 0:01:07]} cxd3 {[%emt 0:01:46]} 23. cxd3 {[%emt 0:00:03]} Nb4 {[%emt 0:00:09]} 24. d4 {[%emt 0:01:08]} Ncd3 {[%emt 0:00:02]} 25. Qd2 {[%emt 0:00:02]} Nxf4 {[%emt 0:00:20]} 26. Qxf4 {[%emt 0:00:34]} Nxa2 {[%emt 0:00:08]} 27. Rxa2 {[%emt 0:00:00]} e5 {[%emt 0:00:31]} 28. dxe5 {[%emt 0:00:18]} Be6 {[%emt 0:00:02]} 29. Raa1 {[%emt 0:00:27]} dxe5 {[%emt 0:00:04]} 30. Qh6 {[%emt 0:01:13]} Qf6 {[%emt 0:00:17]} 31. Ng5 {[%emt 0:00:11]} Qg7 {[%emt 0:00:16]} 32. Qh4 {[%emt 0:00:32]} Bb3 {[%emt 0:00:17]} 33. Rd7 {[%emt 0:00:17]} h6 {[%emt 0:00:04]} 34. Nf3 {[%emt 0:00:22]} Be6 {[%emt 0:01:02]} 35. Rc7 {[%emt 0:00:04]} Qf8 {[%emt 0:00:21]} 36. Raa7 {[%emt 0:00:16]} Ra8 {[%emt 0:00:04]} 37. Rab7 {[%emt 0:00:30]} Reb8 {[%emt 0:00:02]} 38. Kh2 {[%emt 0:00:19]} Bg7 {[%emt 0:00:09]} 39. Nf1 {[%emt 0:00:21]} Rxb7 {[%emt 0:00:11]} 40. Rxb7 {[%emt 0:00:00]} Qc8 {[%emt 0:00:04]} 41. Qe7 {[%emt 0:00:18]} Bf8 {[%emt 0:00:24]} 42. Qc7 {[%emt 0:00:03]} Qxc7 {[%emt 0:00:24]} 43. Rxc7 {[%emt 0:00:00]} Ra2 {[%emt 0:00:06]} 44. Rc2 {[%emt 0:00:06]} Bb3 {[%emt 0:00:13]} 45. Rd2 {[%emt 0:00:02]} Bb4 {[%emt 0:00:01]} 46. Rd8+ {[%emt 0:00:05]} Kg7 {[%emt 0:00:03]} 47. Rb8 {[%emt 0:00:14]} Rxb2 {[%emt 0:00:23]} 48. Ne3 {[%emt 0:00:03]} Ba4 {[%emt 0:00:33]} 49. Kg3 {[%emt 0:00:18]} Bc5 {[%emt 0:00:08]} 50. Rb7 {[%emt 0:00:12]} Re2 {[%emt 0:00:19]} 51. Ng4 {[%emt 0:00:25]} h5 {[%emt 0:00:38]} 52. Ngxe5 {[%emt 0:00:01]} Bxf2+ {[%emt 0:00:23]} 53. Kh2 {[%emt 0:00:03]} Rxe4 {[%emt 0:00:08]} 54. Nxf7 {[%emt 0:00:07]} Re2 {[%emt 0:00:07]} 55. N7g5+ {[%emt 0:00:02]} Kf8 {[%emt 0:00:03]} 56. h4 {[%emt 0:00:09]} Bc5 {[%emt 0:00:02]} 57. Kh3 {[%emt 0:00:09]} b4 {[%emt 0:00:04]} 58. Rc7 {[%emt 0:00:02]} Bd6 {[%emt 0:00:03]} 59. Ra7 {[%emt 0:00:03]} Bc6 {[%emt 0:00:07]} 60. Nh7+ {[%emt 0:00:09]} Ke8 {[%emt 0:00:05]} 61. Nhg5 {[%emt 0:00:03]} Bd7+ {[%emt 0:00:05]} 0-1

[Event "European Online Club-ch-D 2021"]
[Site "Online"]
[Date "2021.03.27"]
[Round "4.20"]
[White "Gavrilescu, David"]
[Black "Medvegy, Zoltan"]
[Result "0-1"]
[ECO "C10"]
[WhiteElo "2476"]
[BlackElo "2527"]
[Annotator "ChessBase"]
[PlyCount "78"]
[EventDate "2021.03.27"]
[EventType "team-tourn"]
[EventCountry "NET"]
[SourceTitle "playchess.com"]
[Source "ChessBase"]
[SourceQuality "1"]
[TimeControl "900+5"]

1. e4 {[%emt 0:00:00]} e6 {[%emt 0:00:03]} 2. d4 {[%emt 0:00:07]} d5 {[%emt 0:00:01]} 3. Nd2 {[%emt 0:00:01]} dxe4 {[%emt 0:00:02]} 4. Nxe4 {[%emt 0:00:02]} Bd7 {[%emt 0:00:01]} 5. Nf3 {[%emt 0:00:01]} Bc6 {[%emt 0:00:01]} 6. Bd3 {[%emt 0:00:02]} Nd7 {[%emt 0:00:01]} 7. O-O {[%emt 0:00:05]} Ngf6 {[%emt 0:00:03]} 8. Ng3 {[%emt 0:00:05]} Be7 {[%emt 0:00:04]} 9. Re1 {[%emt 0:01:17]} O-O {[%emt 0:00:03]} 10. c4 {[%emt 0:02:21]} Bxf3 {[%emt 0:00:08]} 11. Qxf3 {[%emt 0:00:02]} c6 {[%emt 0:00:10]} 12. Bf4 {[%emt 0:01:15]} Re8 {[%emt 0:00:12]} 13. Rad1 {[%emt 0:00:04]} Bf8 {[%emt 0:00:21]} 14. h4 {[%emt 0:00:30]} a5 {[%emt 0:03:23]} 15. Bc2 {[%emt 0:01:20]} a4 {[%emt 0:00:30]} 16. Re2 {[%emt 0:00:55]} Qa5 {[%emt 0:00:24]} 17. Bd2 {[%emt 0:00:33]} Bb4 {[%emt 0:01:29]} 18. Bg5 {[%emt 0:00:11]} h6 {[%emt 0:01:12]} 19. Bf4 {[%emt 0:00:41]} e5 {[%emt 0:01:38]} 20. Bxh6 {[%emt 0:03:45]} gxh6 {[%emt 0:02:40]} 21. Nh5 {[%emt 0:00:02]} exd4 {[%emt 0:01:26]} 22. Rxe8+ {[%emt 0:00:18]} Nxe8 {[%emt 0:00:17]} 23. Rxd4 {[%emt 0:01:21]} Ne5 {[%emt 0:00:48]} 24. Qf4 {[%emt 0:01:48]} Bf8 {[%emt 0:01:06]} 25. Ng3 {[%emt 0:00:09]} Ng6 {[%emt 0:00:21]} 26. Bxg6 {[%emt 0:00:03]} fxg6 {[%emt 0:00:02]} 27. Rd7 {[%emt 0:00:06]} Qe1+ {[%emt 0:00:10]} 28. Kh2 {[%emt 0:00:01]} Qe6 {[%emt 0:00:02]} 29. Rxb7 {[%emt 0:00:03]} Nf6 {[%emt 0:00:16]} 30. f3 {[%emt 0:00:11]} Re8 {[%emt 0:00:20]} 31. Qc7 {[%emt 0:00:04]} Re7 {[%emt 0:00:08]} 32. Qb8 {[%emt 0:00:08]} Rxb7 {[%emt 0:00:02]} 33. Qxb7 {[%emt 0:00:01]} Bd6 {[%emt 0:00:07]} 34. Qa8+ {[%emt 0:00:01]} Kg7 {[%emt 0:00:04]} 35. Qa7+ {[%emt 0:00:01]} Qe7 {[%emt 0:00:08]} 36. Qd4 {[%emt 0:00:06]} Qe5 {[%emt 0:00:03]} 37. Qa7+ {[%emt 0:00:03]} Bc7 {[%emt 0:00:04]} 38. Qf2 {[%emt 0:00:07]} Nh5 {[%emt 0:00:04]} 39. f4 {[%emt 0:00:08]} Qxf4 {[%emt 0:00:04]} 0-1

[Event "European Online Club-ch-D 2021"]
[Site "Online"]
[Date "2021.03.27"]
[Round "5.1"]
[White "Parligras, Mircea-Emilian"]
[Black "Eren, Ataberk"]
[Result "0-1"]
[ECO "D32"]
[WhiteElo "2591"]
[BlackElo "2306"]
[Annotator "ChessBase"]
[PlyCount "70"]
[EventDate "2021.03.27"]
[EventType "team-tourn"]
[EventCountry "NET"]
[SourceTitle "playchess.com"]
[Source "ChessBase"]
[SourceQuality "1"]
[TimeControl "900+5"]

1. d4 {[%emt 0:00:00]} d5 {[%emt 0:00:04]} 2. c4 {[%emt 0:00:04]} e6 {[%emt 0:00:01]} 3. Nf3 {[%emt 0:00:03]} c5 {[%emt 0:00:04]} 4. cxd5 {[%emt 0:00:10]} exd5 {[%emt 0:00:01]} 5. Nc3 {[%emt 0:00:03]} Nc6 {[%emt 0:00:02]} 6. Bg5 {[%emt 0:00:31]} Nf6 {[%emt 0:01:45]} 7. e3 {[%emt 0:01:10]} cxd4 {[%emt 0:00:40]} 8. Nxd4 {[%emt 0:00:06]} Bc5 {[%emt 0:03:17]} 9. Bxf6 {[%emt 0:01:14]} Qxf6 {[%emt 0:00:04]} 10. Nxd5 {[%emt 0:00:09]} Qe5 {[%emt 0:00:29]} 11. Nxc6 {[%emt 0:04:32]} bxc6 {[%emt 0:00:04]} 12. Nc3 {[%emt 0:00:02]} Rb8 {[%emt 0:00:15]} 13. Qc1 {[%emt 0:01:05]} f5 {[%emt 0:03:09]} 14. Be2 {[%emt 0:00:27]} O-O {[%emt 0:00:24]} 15. O-O {[%emt 0:01:02]} f4 {[%emt 0:00:15]} 16. Ne4 {[%emt 0:01:46]} Bb6 {[%emt 0:01:53]} 17. Bf3 {[%emt 0:00:23]} g5 {[%emt 0:00:52]} 18. exf4 {[%emt 0:00:17]} Rxf4 {[%emt 0:00:08]} 19. Ng3 {[%emt 0:00:37]} Ba6 {[%emt 0:00:29]} 20. Re1 {[%emt 0:00:18]} Qd4 {[%emt 0:01:16]} 21. Re3 {[%emt 0:01:16]} g4 {[%emt 0:00:30]} 22. Nh5 {[%emt 0:00:42]} Rf7 {[%emt 0:00:39]} 23. Bxg4 {[%emt 0:00:10]} Qxg4 {[%emt 0:00:05]} 24. Rh3 {[%emt 0:00:38]} Rxf2 {[%emt 0:00:16]} 25. Nf6+ {[%emt 0:00:05]} Rxf6+ {[%emt 0:00:02]} 26. Kh1 {[%emt 0:00:02]} Rbf8 {[%emt 0:00:12]} 27. Rg3 {[%emt 0:00:02]} Qxg3 {[%emt 0:00:01]} 28. hxg3 {[%emt 0:00:02]} Rf1+ {[%emt 0:00:02]} 29. Kh2 {[%emt 0:00:03]} Rxc1 {[%emt 0:00:03]} 30. Rxc1 {[%emt 0:00:01]} Rf6 {[%emt 0:00:01]} 31. g4 {[%emt 0:00:02]} Bc7+ {[%emt 0:00:02]} 32. g3 {[%emt 0:00:01]} Bd3 {[%emt 0:00:05]} 33. Rd1 {[%emt 0:00:08]} Be4 {[%emt 0:00:02]} 34. Kg1 {[%emt 0:00:03]} Bb6+ {[%emt 0:00:02]} 35. Kh2 {[%emt 0:00:02]} Rh6# {[%emt 0:00:01]} 0-1

[Event "European Online Club-ch-D 2021"]
[Site "Online"]
[Date "2021.03.27"]
[Round "5.2"]
[White "Ozkan, Ervin"]
[Black "Dolana, Andrei-Theodor"]
[Result "1-0"]
[ECO "D02"]
[WhiteElo "2147"]
[BlackElo "2359"]
[Annotator "NA"]
[PlyCount "55"]
[EventDate "2021.03.27"]
[EventType "team-tourn"]
[EventCountry "NET"]
[SourceTitle "playchess.com"]
[Source "ChessBase"]
[SourceQuality "1"]
[TimeControl "900+5"]

1. d4 {[%emt 0:00:00]} Nf6 {[%emt 0:00:02]} 2. Nf3 {[%emt 0:00:05]} d5 {[%emt 0:00:08]} 3. Bf4 {[%emt 0:00:02]} c5 {[%emt 0:00:07]} 4. e3 {[%emt 0:00:03]} Nc6 {[%emt 0:00:02]} 5. c3 {[%emt 0:00:03]} e6 {[%emt 0:01:17]} 6. Nbd2 {[%emt 0:00:12]} Bd6 {[%emt 0:00:01]} 7. Bg3 {[%emt 0:00:13]} O-O {[%emt 0:00:05]} 8. Bb5 {[%emt 0:00:04]} Ne4 {[%emt 0:01:23]} 9. Nxe4 {[%emt 0:01:01]} dxe4 {[%emt 0:00:03]} 10. Nd2 {[%emt 0:00:29]} Bxg3 {[%emt 0:03:06]} 11. hxg3 {[%emt 0:00:04]} cxd4 {[%emt 0:00:01]} 12. cxd4 {[%emt 0:01:11]} f5 {[%emt 0:01:29]} 13. Bxc6 {[%emt 0:03:29]} bxc6 {[%emt 0:00:03]} 14. O-O {[%emt 0:01:49]} Ba6 {[%emt 0:02:35]} 15. Re1 {[%emt 0:00:03]} Qb6 {[%emt 0:00:02]} 16. Qc2 {[%emt 0:00:18]} Bd3 {[%emt 0:01:56]} 17. Qc3 {[%emt 0:00:04]} Rfb8 {[%emt 0:00:02]} 18. b3 {[%emt 0:00:23]} a5 {[%emt 0:00:02]} 19. Rec1 {[%emt 0:00:08]} a4 {[%emt 0:00:03]} 20. Nc4 {[%emt 0:01:27]} Qb5 {[%emt 0:02:28]} 21. Ne5 {[%emt 0:00:14]} axb3 {[%emt 0:00:47]} 22. axb3 {[%emt 0:00:05]} Rxa1 {[%emt 0:00:02]} 23. Rxa1 {[%emt 0:00:02]} h6 {[%emt 0:00:02]} 24. Ra3 {[%emt 0:01:01]} Rb6 {[%emt 0:00:41]} 25. Nd7 {[%emt 0:00:47]} Ra6 {[%emt 0:00:02]} 26. Rxa6 {[%emt 0:00:10]} Qxa6 {[%emt 0:00:01]} 27. Qb4 {[%emt 0:01:02]} Qc8 {[%emt 0:00:36]} 28. Qe7 {[%emt 0:00:11]} 1-0

[Event "European Online Club-ch-D 2021"]
[Site "Online"]
[Date "2021.03.27"]
[Round "5.3"]
[White "Toma, Radu-Cristian"]
[Black "Korkmaz, Necmettin"]
[Result "1/2-1/2"]
[ECO "A13"]
[WhiteElo "2385"]
[BlackElo "2101"]
[Annotator "NA"]
[PlyCount "142"]
[EventDate "2021.03.27"]
[EventType "team-tourn"]
[EventCountry "NET"]
[SourceTitle "playchess.com"]
[Source "ChessBase"]
[SourceQuality "1"]
[TimeControl "900+5"]

1. Nf3 {[%emt 0:00:00]} d5 {[%emt 0:00:05]} 2. e3 {[%emt 0:00:02]} Nf6 {[%emt 0:00:09]} 3. c4 {[%emt 0:00:03]} e6 {[%emt 0:00:15]} 4. Nc3 {[%emt 0:00:09]} Be7 {[%emt 0:00:06]} 5. b3 {[%emt 0:00:05]} O-O {[%emt 0:00:05]} 6. Be2 {[%emt 0:00:03]} b6 {[%emt 0:00:30]} 7. O-O {[%emt 0:00:06]} Bb7 {[%emt 0:00:10]} 8. Bb2 {[%emt 0:00:13]} dxc4 {[%emt 0:00:17]} 9. bxc4 {[%emt 0:00:09]} c5 {[%emt 0:00:38]} 10. Qb1 {[%emt 0:00:37]} Nc6 {[%emt 0:00:25]} 11. Rd1 {[%emt 0:00:05]} Qc7 {[%emt 0:00:38]} 12. Nb5 {[%emt 0:01:57]} Qb8 {[%emt 0:00:06]} 13. Ng5 {[%emt 0:00:19]} Ne5 {[%emt 0:01:18]} 14. f4 {[%emt 0:00:17]} Ng6 {[%emt 0:00:08]} 15. Nf3 {[%emt 0:00:25]} Rd8 {[%emt 0:00:37]} 16. a4 {[%emt 0:00:55]} Be4 {[%emt 0:00:18]} 17. d3 {[%emt 0:00:12]} Bc6 {[%emt 0:00:03]} 18. Qc1 {[%emt 0:02:09]} Qb7 {[%emt 0:00:48]} 19. Rb1 {[%emt 0:00:16]} Rd7 {[%emt 0:01:00]} 20. Rd2 {[%emt 0:02:30]} Rad8 {[%emt 0:00:06]} 21. a5 {[%emt 0:00:03]} a6 {[%emt 0:00:49]} 22. Na3 {[%emt 0:00:02]} b5 {[%emt 0:00:06]} 23. cxb5 {[%emt 0:00:40]} axb5 {[%emt 0:00:03]} 24. Nc4 {[%emt 0:00:34]} Bxf3 {[%emt 0:01:30]} 25. Bxf3 {[%emt 0:00:46]} Qa6 {[%emt 0:00:12]} 26. Ne5 {[%emt 0:01:20]} Nxe5 {[%emt 0:00:05]} 27. Bxe5 {[%emt 0:00:01]} Qxa5 {[%emt 0:00:41]} 28. Ra1 {[%emt 0:00:43]} Qb6 {[%emt 0:00:21]} 29. Rda2 {[%emt 0:00:02]} Rc8 {[%emt 0:01:31]} 30. Ra6 {[%emt 0:00:27]} Qd8 {[%emt 0:00:03]} 31. Bc6 {[%emt 0:00:08]} Rxd3 {[%emt 0:00:09]} 32. Bxb5 {[%emt 0:00:03]} c4 {[%emt 0:00:21]} 33. Bxc4 {[%emt 0:00:16]} Rxe3 {[%emt 0:00:53]} 34. Qxe3 {[%emt 0:00:06]} Bc5 {[%emt 0:00:02]} 35. Qxc5 {[%emt 0:00:28]} Rxc5 {[%emt 0:00:02]} 36. Ra8 {[%emt 0:00:21]} Rc8 {[%emt 0:00:03]} 37. Rxc8 {[%emt 0:00:11]} Qxc8 {[%emt 0:00:02]} 38. Be2 {[%emt 0:00:13]} Ne4 {[%emt 0:00:21]} 39. Bd4 {[%emt 0:00:20]} f6 {[%emt 0:00:34]} 40. Bf3 {[%emt 0:00:20]} Qc6 {[%emt 0:00:50]} 41. Re1 {[%emt 0:00:14]} f5 {[%emt 0:00:03]} 42. h3 {[%emt 0:00:18]} Qd5 {[%emt 0:00:05]} 43. Be3 {[%emt 0:00:15]} Qb3 {[%emt 0:00:07]} 44. Bxe4 {[%emt 0:00:01]} fxe4 {[%emt 0:00:02]} 45. Bf2 {[%emt 0:00:02]} Qd3 {[%emt 0:00:08]} 46. Re3 {[%emt 0:00:01]} Qd1+ {[%emt 0:00:07]} 47. Kh2 {[%emt 0:00:01]} Qd5 {[%emt 0:00:05]} 48. Be1 {[%emt 0:00:03]} Qd4 {[%emt 0:00:09]} 49. Bf2 {[%emt 0:00:02]} Qd2 {[%emt 0:00:20]} 50. Kg3 {[%emt 0:00:05]} Qd5 {[%emt 0:00:06]} 51. Kh2 {[%emt 0:00:02]} g6 {[%emt 0:00:03]} 52. Ra3 {[%emt 0:00:03]} e5 {[%emt 0:00:03]} 53. fxe5 {[%emt 0:00:03]} Qxe5+ {[%emt 0:00:02]} 54. Kg1 {[%emt 0:00:28]} g5 {[%emt 0:00:21]} 55. Rg3 {[%emt 0:00:03]} h6 {[%emt 0:00:03]} 56. h4 {[%emt 0:00:06]} Qf4 {[%emt 0:00:04]} 57. hxg5 {[%emt 0:00:02]} hxg5 {[%emt 0:00:02]} 58. Rc3 {[%emt 0:00:03]} Qd2 {[%emt 0:00:04]} 59. Rc8+ {[%emt 0:00:06]} Kf7 {[%emt 0:00:02]} 60. Rc7+ {[%emt 0:00:03]} Ke6 {[%emt 0:00:05]} 61. Rc8 {[%emt 0:00:02]} Kd7 {[%emt 0:00:05]} 62. Rc4 {[%emt 0:00:05]} e3 {[%emt 0:00:02]} 63. Bg3 {[%emt 0:00:03]} Qd1+ {[%emt 0:00:28]} 64. Kh2 {[%emt 0:00:02]} Qh5+ {[%emt 0:00:04]} 65. Kg1 {[%emt 0:00:02]} Qd1+ {[%emt 0:00:02]} 66. Kh2 {[%emt 0:00:01]} Qd3 {[%emt 0:00:23]} 67. Rc5 {[%emt 0:00:14]} Qh7+ {[%emt 0:00:26]} 68. Kg1 {[%emt 0:00:01]} Qb1+ {[%emt 0:00:34]} 69. Kh2 {[%emt 0:00:02]} Qh7+ {[%emt 0:00:10]} 70. Kg1 {[%emt 0:00:02]} Qb1+ {[%emt 0:00:04]} 71. Kh2 {[%emt 0:00:01]} Qh7+ {[%emt 0:00:06]} 1/2-1/2

[Event "European Online Club-ch-D 2021"]
[Site "Online"]
[Date "2021.03.27"]
[Round "5.4"]
[White "Kilic, Gokturk Kagan"]
[Black "Gavrilescu, David"]
[Result "0-1"]
[ECO "D31"]
[WhiteElo "2084"]
[BlackElo "2476"]
[Annotator "ChessBase"]
[PlyCount "42"]
[EventDate "2021.03.27"]
[EventType "team-tourn"]
[EventCountry "NET"]
[SourceTitle "playchess.com"]
[Source "ChessBase"]
[SourceQuality "1"]
[TimeControl "900+5"]

1. d4 {[%emt 0:00:00]} d5 {[%emt 0:00:06]} 2. c4 {[%emt 0:00:04]} e6 {[%emt 0:00:02]} 3. Nc3 {[%emt 0:00:03]} a6 {[%emt 0:00:09]} 4. e3 {[%emt 0:02:06]} Nf6 {[%emt 0:00:29]} 5. Nf3 {[%emt 0:00:03]} Be7 {[%emt 0:00:45]} 6. cxd5 {[%emt 0:00:59]} exd5 {[%emt 0:00:07]} 7. Bd3 {[%emt 0:00:16]} O-O {[%emt 0:00:32]} 8. O-O {[%emt 0:00:10]} c5 {[%emt 0:00:03]} 9. dxc5 {[%emt 0:00:46]} Bxc5 {[%emt 0:00:02]} 10. b3 {[%emt 0:00:47]} Nc6 {[%emt 0:00:35]} 11. Bb2 {[%emt 0:00:33]} Bg4 {[%emt 0:00:04]} 12. Rc1 {[%emt 0:01:09]} Re8 {[%emt 0:01:12]} 13. Nxd5 {[%emt 0:03:15]} Qxd5 {[%emt 0:03:06]} 14. Bxf6 {[%emt 0:00:07]} Qh5 {[%emt 0:02:07]} 15. Bh4 {[%emt 0:02:13]} Ba3 {[%emt 0:01:04]} 16. Rc4 {[%emt 0:02:33]} Ne5 {[%emt 0:00:06]} 17. Rf4 {[%emt 0:00:34]} Bxf3 {[%emt 0:01:32]} 18. gxf3 {[%emt 0:00:04]} g5 {[%emt 0:00:01]} 19. Ra4 {[%emt 0:00:38]} Rad8 {[%emt 0:00:21]} 20. Bg3 {[%emt 0:00:12]} Rxd3 {[%emt 0:00:14]} 21. Qe2 {[%emt 0:00:04]} Rd2 {[%emt 0:00:05]} 0-1

[Event "European Online Club-ch-D 2021"]
[Site "Online"]
[Date "2021.03.27"]
[Round "5.5"]
[White "Bauer, Christian"]
[Black "Ivanchuk, Vasyl"]
[Result "1/2-1/2"]
[ECO "C01"]
[WhiteElo "2639"]
[BlackElo "2678"]
[Annotator "ChessBase"]
[PlyCount "112"]
[EventDate "2021.03.27"]
[EventType "team-tourn"]
[EventCountry "NET"]
[SourceTitle "playchess.com"]
[Source "ChessBase"]
[SourceQuality "1"]
[TimeControl "900+5"]

1. e4 {[%emt 0:00:00]} e6 {[%emt 0:00:21]} 2. d4 {[%emt 0:00:14]} d5 {[%emt 0:00:03]} 3. Nc3 {[%emt 0:00:02]} Bb4 {[%emt 0:00:02]} 4. exd5 {[%emt 0:00:17]} exd5 {[%emt 0:00:02]} 5. Bd3 {[%emt 0:00:09]} Nc6 {[%emt 0:00:17]} 6. a3 {[%emt 0:00:35]} Ba5 {[%emt 0:00:02]} 7. Be3 {[%emt 0:00:39]} Nf6 {[%emt 0:00:57]} 8. Nge2 {[%emt 0:01:13]} O-O {[%emt 0:00:24]} 9. O-O {[%emt 0:00:13]} h6 {[%emt 0:00:08]} 10. h3 {[%emt 0:02:20]} Re8 {[%emt 0:00:16]} 11. Ng3 {[%emt 0:00:27]} Bxc3 {[%emt 0:02:10]} 12. bxc3 {[%emt 0:00:02]} Na5 {[%emt 0:00:01]} 13. Qf3 {[%emt 0:00:45]} Nc4 {[%emt 0:00:04]} 14. Bf4 {[%emt 0:00:46]} c6 {[%emt 0:00:34]} 15. Rfe1 {[%emt 0:00:26]} Rxe1+ {[%emt 0:01:58]} 16. Rxe1 {[%emt 0:00:03]} Be6 {[%emt 0:00:01]} 17. Bc1 {[%emt 0:02:47]} Rc8 {[%emt 0:01:24]} 18. Bf5 {[%emt 0:00:11]} Qe7 {[%emt 0:00:26]} 19. a4 {[%emt 0:01:47]} Re8 {[%emt 0:00:27]} 20. Re2 {[%emt 0:00:32]} Qd8 {[%emt 0:01:12]} 21. Bd3 {[%emt 0:00:05]} Bd7 {[%emt 0:00:01]} 22. Rxe8+ {[%emt 0:00:30]} Nxe8 {[%emt 0:00:02]} 23. Nh5 {[%emt 0:00:23]} Qe7 {[%emt 0:01:54]} 24. Kh2 {[%emt 0:00:54]} Qe1 {[%emt 0:00:03]} 25. Bf4 {[%emt 0:00:32]} Nd2 {[%emt 0:00:02]} 26. Qg3 {[%emt 0:00:25]} Ne4 {[%emt 0:00:02]} 27. Bxe4 {[%emt 0:00:27]} Qxe4 {[%emt 0:00:02]} 28. Be5 {[%emt 0:00:01]} Qg6 {[%emt 0:00:10]} 29. Qxg6 {[%emt 0:00:03]} fxg6 {[%emt 0:00:02]} 30. Nf4 {[%emt 0:00:00]} Bf5 {[%emt 0:01:12]} 31. Nd3 {[%emt 0:00:25]} Nf6 {[%emt 0:01:09]} 32. a5 {[%emt 0:00:14]} Ne4 {[%emt 0:00:26]} 33. Nc5 {[%emt 0:00:02]} Nxc3 {[%emt 0:00:19]} 34. Nxb7 {[%emt 0:00:04]} Bxc2 {[%emt 0:00:04]} 35. Nd8 {[%emt 0:00:06]} Ba4 {[%emt 0:00:05]} 36. a6 {[%emt 0:00:13]} Bb5 {[%emt 0:00:44]} 37. Bb8 {[%emt 0:00:02]} Bxa6 {[%emt 0:00:02]} 38. Nxc6 {[%emt 0:00:02]} Bb5 {[%emt 0:00:01]} 39. Nxa7 {[%emt 0:00:05]} Bd7 {[%emt 0:00:02]} 40. f3 {[%emt 0:00:05]} Ne2 {[%emt 0:00:39]} 41. Be5 {[%emt 0:00:02]} g5 {[%emt 0:00:04]} 42. g3 {[%emt 0:00:13]} h5 {[%emt 0:00:20]} 43. Kg2 {[%emt 0:00:05]} h4 {[%emt 0:00:07]} 44. gxh4 {[%emt 0:00:07]} gxh4 {[%emt 0:00:02]} 45. Kf2 {[%emt 0:00:01]} Nc3 {[%emt 0:00:11]} 46. Bc7 {[%emt 0:00:11]} Kf7 {[%emt 0:00:11]} 47. Bd8 {[%emt 0:00:02]} Bxh3 {[%emt 0:00:02]} 48. Nc6 {[%emt 0:00:04]} Bf5 {[%emt 0:00:06]} 49. Bxh4 {[%emt 0:00:03]} Nb5 {[%emt 0:00:02]} 50. Ke3 {[%emt 0:00:05]} Bh7 {[%emt 0:00:03]} 51. Ne5+ {[%emt 0:00:02]} Ke6 {[%emt 0:00:02]} 52. Bg5 {[%emt 0:00:04]} Bf5 {[%emt 0:00:02]} 53. Bh4 {[%emt 0:00:02]} Nc3 {[%emt 0:00:05]} 54. Bg5 {[%emt 0:00:03]} Nb5 {[%emt 0:00:04]} 55. Bh4 {[%emt 0:00:02]} Nc3 {[%emt 0:00:03]} 56. Bg5 {[%emt 0:00:02]} Nb5 {[%emt 0:00:02]} 1/2-1/2

[Event "European Online Club-ch-D 2021"]
[Site "Online"]
[Date "2021.03.27"]
[Round "5.6"]
[White "Lagarde, Maxime"]
[Black "Pelletier, Yannick"]
[Result "1-0"]
[ECO "B10"]
[WhiteElo "2640"]
[BlackElo "2581"]
[Annotator "ChessBase"]
[PlyCount "75"]
[EventDate "2021.03.27"]
[EventType "team-tourn"]
[EventCountry "NET"]
[SourceTitle "playchess.com"]
[Source "ChessBase"]
[SourceQuality "1"]
[TimeControl "900+5"]

1. e4 {[%emt 0:00:00]} c6 {[%emt 0:00:13]} 2. d3 {[%emt 0:00:16]} d5 {[%emt 0:00:03]} 3. Nd2 {[%emt 0:00:03]} e5 {[%emt 0:00:07]} 4. Ngf3 {[%emt 0:00:02]} Bd6 {[%emt 0:00:02]} 5. g3 {[%emt 0:00:03]} Nf6 {[%emt 0:00:04]} 6. Bg2 {[%emt 0:00:02]} O-O {[%emt 0:00:01]} 7. O-O {[%emt 0:00:01]} Re8 {[%emt 0:00:02]} 8. c3 {[%emt 0:00:10]} a5 {[%emt 0:00:03]} 9. a4 {[%emt 0:00:52]} Qc7 {[%emt 0:00:37]} 10. Qc2 {[%emt 0:00:34]} Nbd7 {[%emt 0:00:25]} 11. b3 {[%emt 0:00:25]} b6 {[%emt 0:00:30]} 12. Re1 {[%emt 0:00:13]} Ba6 {[%emt 0:00:17]} 13. Nh4 {[%emt 0:01:03]} Rad8 {[%emt 0:01:02]} 14. Nf5 {[%emt 0:00:48]} Bf8 {[%emt 0:00:03]} 15. Nf3 {[%emt 0:00:06]} Bxd3 {[%emt 0:01:37]} 16. Qxd3 {[%emt 0:00:00]} dxe4 {[%emt 0:00:02]} 17. Qc2 {[%emt 0:00:17]} exf3 {[%emt 0:00:05]} 18. Bxf3 {[%emt 0:00:00]} h6 {[%emt 0:02:27]} 19. Bg2 {[%emt 0:01:07]} Nc5 {[%emt 0:00:11]} 20. Bf1 {[%emt 0:01:04]} Ne6 {[%emt 0:01:34]} 21. h4 {[%emt 0:00:41]} e4 {[%emt 0:00:29]} 22. Bh3 {[%emt 0:02:26]} Bc5 {[%emt 0:00:57]} 23. Kg2 {[%emt 0:00:13]} Rd3 {[%emt 0:00:37]} 24. Bb2 {[%emt 0:02:58]} Red8 {[%emt 0:00:10]} 25. Re2 {[%emt 0:00:01]} h5 {[%emt 0:01:32]} 26. b4 {[%emt 0:00:08]} axb4 {[%emt 0:02:28]} 27. cxb4 {[%emt 0:00:08]} Bd4 {[%emt 0:00:02]} 28. Qxc6 {[%emt 0:00:52]} Qe5 {[%emt 0:01:22]} 29. Nxd4 {[%emt 0:00:24]} Nxd4 {[%emt 0:00:00]} 30. Qxb6 {[%emt 0:00:16]} Qd5 {[%emt 0:00:08]} 31. Bxd4 {[%emt 0:00:27]} Rxd4 {[%emt 0:00:18]} 32. Kh2 {[%emt 0:00:35]} Qb3 {[%emt 0:00:03]} 33. a5 {[%emt 0:00:31]} Rd2 {[%emt 0:00:08]} 34. Rae1 {[%emt 0:00:07]} R8d4 {[%emt 0:00:06]} 35. Qb8+ {[%emt 0:00:25]} Rd8 {[%emt 0:00:03]} 36. Qc7 {[%emt 0:00:09]} Qxb4 {[%emt 0:00:04]} 37. a6 {[%emt 0:00:08]} Ra8 {[%emt 0:00:06]} 38. Qb7 {[%emt 0:00:11]} 1-0